fUSD/lending_fUSD_20240814
["ID","MTS","AMOUNT","RATE_DAILY","PERIOD"]
[334883145,1723626655862,-500.0,0.0001452,2]
[334883147,1723626655871,-500.0,0.0001452,2]
[334883149,1723626655881,-500.0,0.0001452,2]
[334883151,1723626655890,-3137.69,0.0001452,2]
[334883153,1723626655900,-500.0,0.0001452,2]
[334883155,1723626655909,-500.0,0.0001452,2]
[334883157,1723626655919,-1305.48,0.0001452,2]
[334883159,1723626655927,-500.0,0.0001452,2]
[334883161,1723626655937,-644.37,0.0001452,2]
[334883163,1723626655947,-233.34568501,0.0001452,2]
[334883165,1723626655957,-1305.6,0.0001452,2]
[334883167,1723626655966,-500.0,0.0001452,2]
[334883169,1723626655975,-500.0,0.0001452,2]
[334883171,1723626655985,-536.79,0.0001452,2]
[334883172,1723626655994,-983.66,0.0001452,2]
[334883173,1723626656003,-500.0,0.0001452,2]
[334883174,1723626656013,-500.0,0.0001452,2]
[334883175,1723626656022,-564.80994535,0.0001452,2]
[334883176,1723626656032,-677.53,0.0001452,2]
[334883177,1723626656041,-2121.13,0.0001452,2]
[334883178,1723626656050,-638.37,0.0001452,2]
[334883179,1723626656059,-759.39,0.0001452,2]
[334883180,1723626656069,-500.0,0.0001452,2]
[334883181,1723626656078,-500.0,0.0001452,2]
[334883183,1723626656087,-500.0,0.0001452,2]
[334883185,1723626656096,-151.0,0.0001452,2]
[334883186,1723626656106,-500.0,0.0001452,2]
[334883188,1723626656115,-500.0,0.0001452,2]
[334883190,1723626656124,-1352.79,0.0001452,2]
[334883192,1723626656133,-500.0,0.0001452,2]
[334883194,1723626656141,-500.0,0.0001452,2]
[334883195,1723626656150,-794.59,0.0001452,2]
[334883197,1723626656159,-849.35,0.0001452,2]
[334883199,1723626656168,-500.0,0.0001452,2]
[334883201,1723626656178,-587.17918423,0.0001452,2]
[334883203,1723626656187,-655.62,0.0001452,2]
[334883205,1723626656197,-500.0,0.0001452,2]
[334883207,1723626656211,-500.0,0.0001452,2]
[334883209,1723626656225,-1159.21,0.0001452,2]
[334883211,1723626656238,-500.0,0.0001452,2]
[334883214,1723626656252,-500.0,0.0001452,2]
[334883216,1723626656263,-733.33,0.0001452,2]
[334883218,1723626656274,-500.0,0.0001452,2]
[334883220,1723626656286,-500.0,0.0001452,2]
[334883222,1723626656298,-500.0,0.0001452,2]
[334883224,1723626656310,-500.0,0.0001452,2]
[334883226,1723626656321,-562.63,0.0001452,2]
[334883228,1723626656334,-1460.87,0.0001452,2]
[334883231,1723626656346,-996.55,0.0001452,2]
[334883233,1723626656359,-500.0,0.0001452,2]
[334883235,1723626656372,-500.0,0.0001452,2]
[334883238,1723626656385,-500.0,0.0001452,2]
[334883240,1723626656397,-1258.81,0.0001452,2]
[334883242,1723626656408,-500.0,0.0001452,2]
[334883245,1723626656427,-500.0,0.0001452,2]
[334883247,1723626656439,-500.0,0.0001452,2]
[334883249,1723626656451,-682.77,0.0001452,2]
[334883251,1723626656465,-725.26,0.0001452,2]
[334883254,1723626656477,-604.11,0.0001452,2]
[334883256,1723626656489,-796.91,0.0001452,2]
[334883258,1723626656501,-678.33,0.0001452,2]
[334883260,1723626656511,-500.0,0.0001452,2]
[334883262,1723626656521,-500.0,0.0001452,2]
[334883264,1723626656534,-500.0,0.0001452,2]
[334883266,1723626656545,-500.0,0.0001452,2]
[334883268,1723626656557,-500.0,0.0001452,2]
[334883270,1723626656568,-1036.99,0.0001452,2]
[334883272,1723626656581,-684.51,0.0001452,2]
[334883274,1723626656592,-2400.86,0.0001452,2]
[334883276,1723626656605,-1157.66,0.0001452,2]
[334883279,1723626656618,-2787.1,0.0001452,2]
[334883281,1723626656631,-500.0,0.0001452,2]
[334883283,1723626656643,-1126.69,0.0001452,2]
[334883285,1723626656654,-500.0,0.0001452,2]
[334883287,1723626656664,-500.0,0.0001452,2]
[334883289,1723626656674,-1607.6,0.0001452,2]
[334883291,1723626656686,-500.0,0.0001452,2]
[334883294,1723626656699,-500.0,0.0001452,2]
[334883296,1723626656711,-500.0,0.0001452,2]
[334883298,1723626656723,-544.62,0.0001452,2]
[334883300,1723626656735,-780.32,0.0001452,2]
[334883302,1723626656745,-500.0,0.0001452,2]
[334883304,1723626656758,-507.47,0.0001452,2]
[334883307,1723626656769,-3758.29,0.0001452,2]
[334883309,1723626656781,-1854.98,0.0001452,2]
[334883311,1723626656794,-500.0,0.0001452,2]
[334883313,1723626656805,-500.0,0.0001452,2]
[334883315,1723626656816,-500.0,0.0001452,2]
[334883317,1723626656827,-642.83,0.0001452,2]
[334883319,1723626656837,-556.33,0.0001452,2]
[334883321,1723626656849,-500.0,0.0001452,2]
[334883323,1723626656860,-500.0,0.0001452,2]
[334883325,1723626656871,-659.96,0.0001452,2]
[334883327,1723626656881,-635.37,0.0001452,2]
[334883329,1723626656893,-810.55,0.0001452,2]
[334883331,1723626656904,-500.0,0.0001452,2]
[334883333,1723626656915,-500.0,0.0001452,2]
[334883336,1723626656927,-500.0,0.0001452,2]
[334883338,1723626656939,-500.0,0.0001452,2]
[334883340,1723626656950,-500.0,0.0001452,2]
[334883342,1723626656961,-893.45,0.0001452,2]
[334883344,1723626656972,-734.11,0.0001452,2]
[334883346,1723626656983,-1023.98,0.0001452,2]
[334883349,1723626656994,-2346.66,0.0001452,2]
[334883351,1723626657005,-500.0,0.0001452,2]
[334883353,1723626657016,-500.0,0.0001452,2]
[334883355,1723626657027,-7848.21,0.0001452,2]
[334883357,1723626657038,-687.93,0.0001452,2]
[334883359,1723626657049,-743.2,0.0001452,2]
[334883361,1723626657060,-500.0,0.0001452,2]
[334883364,1723626657071,-500.0,0.0001452,2]
[334883366,1723626657082,-456.11,0.0001452,2]
[334883368,1723626657093,-975.29,0.0001452,2]
[334883370,1723626657104,-500.0,0.0001452,2]
[334883372,1723626657115,-150.0,0.00014671,2]
[334883374,1723626657126,-520.0,0.00014675,2]
[334883377,1723626657137,-496.23385394,0.00014694,2]
[334883379,1723626657149,-2972.024085,0.00014784,2]
[334883381,1723626657160,-154.515367,0.00014794,2]
[334883383,1723626657171,-500.0,0.00014794,2]
[334883385,1723626657183,-232.16905183,0.00014794,2]
[334883388,1723626657194,-500.0,0.00014794,2]
[334883390,1723626657205,-601.4,0.00014794,2]
[334883392,1723626657215,-500.0,0.00014794,2]
[334883394,1723626657226,-500.0,0.00014794,2]
[334883396,1723626657237,-500.0,0.00014794,2]
[334883398,1723626657249,-849.17,0.00014794,2]
[334883401,1723626657260,-500.0,0.00014794,2]
[334883403,1723626657272,-500.0,0.00014794,2]
[334883405,1723626657283,-500.0,0.00014794,2]
[334883407,1723626657295,-500.0,0.00014794,2]
[334883409,1723626657306,-500.0,0.00014794,2]
[334883412,1723626657317,-500.0,0.00014794,2]
[334883414,1723626657329,-500.0,0.00014794,2]
[334883416,1723626657340,-500.0,0.00014794,2]
[334883418,1723626657351,-500.0,0.00014794,2]
[334883420,1723626657362,-500.0,0.00014794,2]
[334883423,1723626657374,-500.0,0.00014794,2]
[334883425,1723626657386,-500.0,0.00014794,2]
[334883427,1723626657397,-500.0,0.00014794,2]
[334883429,1723626657409,-500.0,0.00014794,2]
[334883431,1723626657423,-500.0,0.00014794,2]
[334883433,1723626657437,-500.0,0.00014794,2]
[334883436,1723626657449,-500.0,0.00014794,2]
[334883438,1723626657463,-500.0,0.00014794,2]
[334883440,1723626657474,-500.0,0.00014794,2]
[334883442,1723626657485,-500.0,0.00014794,2]
[334883445,1723626657499,-500.0,0.00014794,2]
[334883447,1723626657509,-512.44,0.00014794,2]
[334883449,1723626657520,-277.768906,0.00014794,2]
[334883451,1723626657531,-500.0,0.00014794,2]
[334883453,1723626657542,-500.0,0.00014794,2]
[334883455,1723626657553,-570.62127332,0.00014794,2]
[334883458,1723626657565,-500.0,0.00014794,2]
[334883460,1723626657577,-500.0,0.00014794,2]
[334883462,1723626657588,-500.0,0.00014794,2]
[334883464,1723626657602,-678.29,0.00014794,2]
[334883466,1723626657613,-217.6,0.00014794,2]
[334883469,1723626657624,-511.38,0.00014794,2]
[334883471,1723626657636,-500.0,0.00014794,2]
[334883473,1723626657646,-151.06,0.00014794,2]
[334883475,1723626657657,-500.0,0.00014794,2]
[334883477,1723626657668,-500.0,0.00014794,2]
[334883480,1723626657681,-500.0,0.00014794,2]
[334883482,1723626657693,-500.0,0.00014794,2]
[334883484,1723626657704,-500.0,0.00014794,2]
[334883486,1723626657714,-500.0,0.00014794,2]
[334883488,1723626657726,-500.0,0.00014794,2]
[334883491,1723626657736,-500.0,0.00014794,2]
[334883493,1723626657748,-500.0,0.00014794,2]
[334883495,1723626657760,-500.0,0.00014794,2]
[334883497,1723626657771,-500.0,0.00014794,2]
[334883499,1723626657782,-500.0,0.00014794,2]
[334883502,1723626657795,-611.40767886,0.00014794,2]
[334883504,1723626657806,-500.0,0.00014794,2]
[334883506,1723626657817,-500.0,0.00014794,2]
[334883508,1723626657828,-408.4,0.00014794,2]
[334883510,1723626657839,-500.0,0.00014794,2]
[334883512,1723626657850,-500.0,0.00014794,2]
[334883514,1723626657862,-500.0,0.00014794,2]
[334883516,1723626657873,-1974.32,0.00014794,2]
[334883519,1723626657884,-500.0,0.00014794,2]
[334883521,1723626657895,-424.78596866,0.00014794,2]
[334883523,1723626657906,-500.0,0.00014794,2]
[334883525,1723626657918,-167.78428831,0.00014794,2]
[334883527,1723626657930,-500.0,0.00014794,2]
[334883529,1723626657940,-500.0,0.00014794,2]
[334883531,1723626657951,-226.61,0.00014794,2]
[334883533,1723626657962,-500.0,0.00014794,2]
[334883535,1723626657973,-500.0,0.00014794,2]
[334883537,1723626657984,-500.0,0.00014794,2]
[334883539,1723626657995,-591.86,0.00014794,2]
[334883541,1723626658008,-666.36,0.00014794,2]
[334883542,1723626658020,-573.26,0.00014794,2]
[334883543,1723626658032,-500.0,0.00014794,2]
[334883544,1723626658043,-500.0,0.00014794,2]
[334883545,1723626658053,-600.81708077,0.00014794,2]
[334883546,1723626658064,-500.0,0.00014794,2]
[334883547,1723626658075,-491.61220233,0.00014794,2]
[334883548,1723626658086,-500.0,0.00014794,2]
[334883550,1723626658097,-500.0,0.00014794,2]
[334883552,1723626658107,-500.0,0.00014794,2]
[334883554,1723626658119,-500.0,0.00014794,2]
[334883556,1723626658129,-500.0,0.00014794,2]
[334883558,1723626658140,-554.42,0.00014794,2]
[334883560,1723626658151,-607.51,0.00014794,2]
[334883563,1723626658161,-500.0,0.00014794,2]
[334883565,1723626658172,-500.0,0.00014794,2]
[334883567,1723626658185,-500.0,0.00014794,2]
[334883569,1723626658195,-500.0,0.00014794,2]
[334883571,1723626658206,-500.0,0.00014794,2]
[334883573,1723626658217,-500.0,0.00014794,2]
[334883576,1723626658228,-500.0,0.00014794,2]
[334883578,1723626658239,-500.0,0.00014794,2]
[334883580,1723626658250,-500.0,0.00014794,2]
[334883582,1723626658261,-500.0,0.00014794,2]
[334883584,1723626658272,-617.57,0.00014794,2]
[334883587,1723626658283,-500.0,0.00014794,2]
[334883589,1723626658295,-500.0,0.00014794,2]
[334883591,1723626658306,-500.0,0.00014794,2]
[334883593,1723626658317,-500.0,0.00014794,2]
[334883595,1723626658328,-573.31,0.00014794,2]
[334883598,1723626658343,-500.0,0.00014794,2]
[334883600,1723626658354,-500.0,0.00014794,2]
[334883602,1723626658364,-500.0,0.00014794,2]
[334883604,1723626658375,-500.0,0.00014794,2]
[334883606,1723626658386,-500.0,0.00014794,2]
[334883608,1723626658398,-500.0,0.00014794,2]
[334883611,1723626658409,-783.31,0.00014794,2]
[334883613,1723626658425,-500.0,0.00014794,2]
[334883615,1723626658436,-500.0,0.00014794,2]
[334883617,1723626658447,-500.0,0.00014794,2]
[334883619,1723626658460,-228.74,0.00014794,2]
[334883621,1723626658471,-500.0,0.00014794,2]
[334883623,1723626658482,-506.07,0.00014794,2]
[334883625,1723626658495,-500.0,0.00014794,2]
[334883628,1723626658506,-520.19,0.00014794,2]
[334883630,1723626658518,-552.43,0.00014794,2]
[334883632,1723626658529,-500.0,0.00014794,2]
[334883634,1723626658540,-500.0,0.00014794,2]
[334883636,1723626658551,-500.0,0.00014794,2]
[334883638,1723626658562,-426.04500592,0.00014794,2]
[334883641,1723626658573,-500.0,0.00014794,2]
[334883643,1723626658585,-500.0,0.00014794,2]
[334883645,1723626658595,-489.01060871,0.00014794,2]
[334883647,1723626658607,-223.85865212,0.00014794,2]
[334883649,1723626658618,-500.0,0.00014794,2]
[334883651,1723626658629,-500.0,0.00014794,2]
[334883683,1723626658928,-500.0,0.00014794,2]
[334883686,1723626658953,-922.73,0.00014794,2]
[334883689,1723626658973,-500.0,0.00014794,2]
[334883690,1723626658984,-230.36310954,0.00014794,2]
[334883692,1723626658994,-500.0,0.00014794,2]
[334883694,1723626659003,-500.0,0.00014794,2]
[334883695,1723626659012,-500.0,0.00014794,2]
[334883697,1723626659021,-500.0,0.00014794,2]
[334883698,1723626659030,-830.91,0.00014794,2]
[334883700,1723626659039,-522.9,0.00014794,2]
[334883702,1723626659048,-500.0,0.00014794,2]
[334883703,1723626659057,-500.0,0.00014794,2]
[334883705,1723626659067,-500.0,0.00014794,2]
[334883706,1723626659076,-500.0,0.00014794,2]
[334883708,1723626659085,-690.05,0.00014794,2]
[334883710,1723626659094,-500.0,0.00014794,2]
[334883711,1723626659103,-500.0,0.00014794,2]
[334883713,1723626659113,-500.0,0.00014794,2]
[334883714,1723626659122,-818.44,0.00014794,2]
[334883716,1723626659131,-500.0,0.00014794,2]
[334883718,1723626659141,-500.0,0.00014794,2]
[334883720,1723626659151,-283.09585476,0.00014794,2]
[334883722,1723626659161,-500.0,0.00014794,2]
[334883723,1723626659171,-500.0,0.00014794,2]
[334883725,1723626659182,-500.0,0.00014794,2]
[334883727,1723626659191,-500.0,0.00014794,2]
[334883728,1723626659200,-500.0,0.00014794,2]
[334883730,1723626659210,-500.0,0.00014794,2]
[334883731,1723626659219,-542.84,0.00014794,2]
[334883733,1723626659228,-500.0,0.00014794,2]
[334883735,1723626659237,-500.0,0.00014794,2]
[334883737,1723626659246,-500.0,0.00014794,2]
[334883739,1723626659258,-500.0,0.00014794,2]
[334883740,1723626659267,-500.0,0.00014794,2]
[334883742,1723626659277,-609.17,0.00014794,2]
[334883744,1723626659286,-500.0,0.00014794,2]
[334883745,1723626659296,-579.6,0.00014794,2]
[334883747,1723626659305,-500.0,0.00014794,2]
[334883749,1723626659314,-500.0,0.00014794,2]
[334883750,1723626659323,-653.02,0.00014794,2]
[334883752,1723626659332,-151.0,0.00014794,2]
[334883754,1723626659342,-500.0,0.00014794,2]
[334883756,1723626659350,-500.0,0.00014794,2]
[334883758,1723626659360,-500.0,0.00014794,2]
[334883759,1723626659369,-2177.45,0.00014794,2]
[334883761,1723626659378,-1063.82,0.00014794,2]
[334883763,1723626659387,-500.0,0.00014794,2]
[334883764,1723626659396,-500.0,0.00014794,2]
[334883766,1723626659405,-845.57,0.00014794,2]
[334883768,1723626659417,-1527.58,0.00014794,2]
[334883770,1723626659428,-676.31,0.00014794,2]
[334883772,1723626659437,-500.0,0.00014794,2]
[334883773,1723626659446,-1715.7,0.00014794,2]
[334883775,1723626659455,-500.0,0.00014794,2]
[334883777,1723626659466,-754.95,0.00014794,2]
[334883779,1723626659475,-500.0,0.00014794,2]
[334883780,1723626659484,-972.03,0.00014794,2]
[334883782,1723626659496,-500.0,0.00014794,2]
[334883784,1723626659505,-524.53,0.00014794,2]
[334883786,1723626659515,-500.0,0.00014794,2]
[334883787,1723626659524,-500.0,0.00014794,2]
[334883789,1723626659533,-500.0,0.00014794,2]
[334883791,1723626659543,-770.2,0.00014794,2]
[334883792,1723626659552,-500.0,0.00014794,2]
[334883794,1723626659562,-2373.49,0.00014794,2]
[334883796,1723626659571,-608.38,0.00014794,2]
[334883797,1723626659580,-562.69,0.00014794,2]
[334883799,1723626659590,-597.06823322,0.00014794,2]
[334883800,1723626659600,-500.0,0.00014794,2]
[334883802,1723626659609,-644.93,0.00014794,2]
[334883804,1723626659619,-6691.92,0.00014794,2]
[334883806,1723626659628,-2731.88,0.00014794,2]
[334883807,1723626659637,-204.03946521,0.00014794,2]
[334883809,1723626659647,-2589.64,0.00014794,2]
[334883811,1723626659656,-500.0,0.00014794,2]
[334883812,1723626659666,-500.0,0.00014794,2]
[334883814,1723626659675,-552.38,0.00014794,2]
[334883816,1723626659685,-2632.4,0.00014794,2]
[334883817,1723626659694,-1402.43,0.00014794,2]
[334883819,1723626659703,-2123.25,0.00014794,2]
[334883821,1723626659714,-670.79,0.00014794,2]
[334883822,1723626659723,-759.51,0.00014794,2]
[334883824,1723626659733,-985.93,0.00014794,2]
[334883826,1723626659742,-500.0,0.00014794,2]
[334883827,1723626659751,-500.0,0.00014794,2]
[334883829,1723626659760,-500.0,0.00014794,2]
[334883831,1723626659771,-3137.69,0.00014794,2]
[334883833,1723626659780,-500.0,0.00014794,2]
[334883834,1723626659790,-500.0,0.00014794,2]
[334883836,1723626659799,-1305.48,0.00014794,2]
[334883838,1723626659809,-500.0,0.00014794,2]
[334883839,1723626659819,-644.37,0.00014794,2]
[334883841,1723626659828,-1305.6,0.00014794,2]
[334883843,1723626659838,-500.0,0.00014794,2]
[334883845,1723626659847,-500.0,0.00014794,2]
[334883846,1723626659857,-536.79,0.00014794,2]
[334883848,1723626659867,-983.66,0.00014794,2]
[334883850,1723626659876,-500.0,0.00014794,2]
[334883851,1723626659886,-500.0,0.00014794,2]
[334883853,1723626659896,-677.53,0.00014794,2]
[334883855,1723626659905,-2121.13,0.00014794,2]
[334883857,1723626659915,-638.37,0.00014794,2]
[334883859,1723626659925,-759.39,0.00014794,2]
[334883860,1723626659935,-500.0,0.00014794,2]
[334883862,1723626659944,-500.0,0.00014794,2]
[334883864,1723626659954,-500.0,0.00014794,2]
[334883865,1723626659964,-151.0,0.00014794,2]
[334883867,1723626659973,-500.0,0.00014794,2]
[334883869,1723626659983,-500.0,0.00014794,2]
[334883871,1723626659993,-1352.79,0.00014794,2]
[334883872,1723626660002,-500.0,0.00014794,2]
[334883874,1723626660012,-500.0,0.00014794,2]
[334883876,1723626660021,-794.59,0.00014794,2]
[334883877,1723626660031,-849.35,0.00014794,2]
[334883879,1723626660041,-500.0,0.00014794,2]
[334883881,1723626660051,-655.62,0.00014794,2]
[334883883,1723626660060,-500.0,0.00014794,2]
[334883884,1723626660070,-500.0,0.00014794,2]
[334883886,1723626660080,-1159.21,0.00014794,2]
[334883888,1723626660090,-500.0,0.00014794,2]
[334883890,1723626660100,-500.0,0.00014794,2]
[334883891,1723626660109,-733.33,0.00014794,2]
[334883893,1723626660118,-500.0,0.00014794,2]
[334883895,1723626660127,-500.0,0.00014794,2]
[334883896,1723626660136,-500.0,0.00014794,2]
[334883898,1723626660146,-429.12467331,0.00014794,2]
[334883899,1723626660155,-562.63,0.00014794,2]
[334883900,1723626660165,-1460.87,0.00014794,2]
[334883901,1723626660175,-996.55,0.00014794,2]
[334883902,1723626660185,-444.49756512,0.00014794,2]
[334883903,1723626660194,-500.0,0.00014794,2]
[334883904,1723626660203,-500.0,0.00014794,2]
[334883905,1723626660214,-1258.81,0.00014794,2]
[334883906,1723626660223,-500.0,0.00014794,2]
[334883907,1723626660233,-500.0,0.00014794,2]
[334883908,1723626660243,-500.0,0.00014794,2]
[334883909,1723626660252,-682.77,0.00014794,2]
[334883910,1723626660262,-725.26,0.00014794,2]
[334883911,1723626660271,-604.11,0.00014794,2]
[334883913,1723626660281,-796.91,0.00014794,2]
[334883914,1723626660290,-678.33,0.00014794,2]
[334883916,1723626660299,-500.0,0.00014794,2]
[334883918,1723626660309,-500.0,0.00014794,2]
[334883920,1723626660319,-500.0,0.00014794,2]
[334883921,1723626660328,-306.39116998,0.00014794,2]
[334883923,1723626660338,-500.0,0.00014794,2]
[334883925,1723626660347,-1036.99,0.00014794,2]
[334883927,1723626660357,-684.51,0.00014794,2]
[334883929,1723626660367,-2400.86,0.00014794,2]
[334883931,1723626660377,-1157.66,0.00014794,2]
[334883933,1723626660386,-2787.1,0.00014794,2]
[334883935,1723626660396,-500.0,0.00014794,2]
[334883937,1723626660405,-1126.69,0.00014794,2]
[334883939,1723626660419,-500.0,0.00014794,2]
[334883941,1723626660430,-500.0,0.00014794,2]
[334883943,1723626660446,-1607.6,0.00014794,2]
[334883945,1723626660456,-500.0,0.00014794,2]
[334883947,1723626660466,-500.0,0.00014794,2]
[334883949,1723626660475,-500.0,0.00014794,2]
[334883951,1723626660485,-544.62,0.00014794,2]
[334883953,1723626660496,-780.32,0.00014794,2]
[334883955,1723626660505,-500.0,0.00014794,2]
[334883957,1723626660516,-507.47,0.00014794,2]
[334883959,1723626660526,-3758.29,0.00014794,2]
[334883961,1723626660536,-1854.98,0.00014794,2]
[334883963,1723626660545,-500.0,0.00014794,2]
[334883965,1723626660555,-500.0,0.00014794,2]
[334883967,1723626660565,-500.0,0.00014794,2]
[334883969,1723626660575,-642.83,0.00014794,2]
[334883971,1723626660585,-556.33,0.00014794,2]
[334883973,1723626660595,-500.0,0.00014794,2]
[334883975,1723626660605,-500.0,0.00014794,2]
[334883977,1723626660614,-659.96,0.00014794,2]
[334883979,1723626660623,-635.37,0.00014794,2]
[334883981,1723626660633,-810.55,0.00014794,2]
[334883983,1723626660643,-500.0,0.00014794,2]
[334883985,1723626660653,-500.0,0.00014794,2]
[334883987,1723626660663,-500.0,0.00014794,2]
[334883989,1723626660673,-500.0,0.00014794,2]
[334883991,1723626660684,-500.0,0.00014794,2]
[334883993,1723626660694,-893.45,0.00014794,2]
[334883995,1723626660705,-734.11,0.00014794,2]
[334883997,1723626660715,-1023.98,0.00014794,2]
[334883999,1723626660724,-2346.66,0.00014794,2]
[334884001,1723626660734,-500.0,0.00014794,2]
[334884003,1723626660743,-500.0,0.00014794,2]
[334884005,1723626660753,-7848.21,0.00014794,2]
[334884007,1723626660762,-687.93,0.00014794,2]
[334884009,1723626660772,-743.2,0.00014794,2]
[334884011,1723626660782,-500.0,0.00014794,2]
[334884013,1723626660791,-500.0,0.00014794,2]
[334884015,1723626660801,-975.29,0.00014794,2]
[334884017,1723626660811,-500.0,0.00014794,2]
[334884019,1723626660821,-1500.0,0.000149,5]
[334884021,1723626660831,-480.0,0.00014928,2]
[334884023,1723626660841,-228.94,0.00014988,2]
[334884025,1723626660851,-1200.0,0.00015,2]
[334884027,1723626660861,-4880.0,0.00015,2]
[334884029,1723626660870,-1002.12,0.00015,2]
[334884031,1723626660881,-676.50109187,0.00015,2]
[334884033,1723626660891,-500.0,0.00015068,2]
[334884035,1723626660901,-500.0,0.00015068,2]
[334884037,1723626660911,-601.4,0.00015068,2]
[334884039,1723626660920,-500.0,0.00015068,2]
[334884041,1723626660932,-500.0,0.00015068,2]
[334884043,1723626660942,-409.94604608,0.00015068,2]
[334884045,1723626660951,-849.17,0.00015068,2]
[334884047,1723626660961,-500.0,0.00015068,2]
[334884049,1723626660970,-500.0,0.00015068,2]
[334884051,1723626660980,-500.0,0.00015068,2]
[334884053,1723626660990,-500.0,0.00015068,2]
[334884055,1723626660999,-500.0,0.00015068,2]
[334884057,1723626661008,-500.0,0.00015068,2]
[334884059,1723626661018,-500.0,0.00015068,2]
[334884061,1723626661028,-500.0,0.00015068,2]
[334884063,1723626661038,-500.0,0.00015068,2]
[334884065,1723626661048,-500.0,0.00015068,2]
[334884067,1723626661057,-500.0,0.00015068,2]
[334884069,1723626661067,-500.0,0.00015068,2]
[334884071,1723626661076,-500.0,0.00015068,2]
[334884073,1723626661086,-500.0,0.00015068,2]
[334884075,1723626661095,-500.0,0.00015068,2]
[334884077,1723626661104,-386.69307473,0.00015068,2]
[334884079,1723626661113,-500.0,0.00015068,2]
[334884081,1723626661123,-500.0,0.00015068,2]
[334884083,1723626661133,-500.0,0.00015068,2]
[334884085,1723626661142,-500.0,0.00015068,2]
[334884087,1723626661152,-500.0,0.00015068,2]
[334884089,1723626661161,-512.44,0.00015068,2]
[334884091,1723626661171,-500.0,0.00015068,2]
[334884093,1723626661183,-496.75213627,0.00015068,2]
[334884095,1723626661193,-500.0,0.00015068,2]
[334884097,1723626661202,-500.0,0.00015068,2]
[334884099,1723626661211,-500.0,0.00015068,2]
[334884101,1723626661221,-678.29,0.00015068,2]
[334884103,1723626661230,-511.38,0.00015068,2]
[334884105,1723626661240,-500.0,0.00015068,2]
[334884107,1723626661250,-500.0,0.00015068,2]
[334884109,1723626661260,-500.0,0.00015068,2]
[334884111,1723626661270,-500.0,0.00015068,2]
[334884113,1723626661279,-500.0,0.00015068,2]
[334884114,1723626661290,-500.0,0.00015068,2]
[334884116,1723626661299,-592.77450239,0.00015068,2]
[334884118,1723626661310,-454.21043139,0.00015068,2]
[334884120,1723626661319,-500.0,0.00015068,2]
[334884122,1723626661329,-500.0,0.00015068,2]
[334884124,1723626661339,-500.0,0.00015068,2]
[334884126,1723626661349,-500.0,0.00015068,2]
[334884128,1723626661358,-500.0,0.00015068,2]
[334884130,1723626661368,-361.1238827,0.00015068,2]
[334884132,1723626661378,-315.5,0.00015068,2]
[334884134,1723626661388,-500.0,0.00015068,2]